bitfinex-derivatives/quotes_SOLF0:USTF0_20240927
["timestamp","ask_amount","ask_price","bid_price","bid_amount"]
[1727415216929,3.1881,156.81,156.78,3.1885]
[1727415217126,3.1881,156.81,156.79,10.73581494]
[1727415217332,3.1881,156.81,156.77,3.1888]
[1727415217532,3.1881,156.81,156.78,10.73468215]
[1727415217732,3.1881,156.81,156.79,10.73468215]
[1727415217929,4.58961847,156.83,156.73,7.63536216]
[1727415218135,4.58961847,156.83,156.74,46.05393457]
[1727415218330,1.3286,156.82,156.75,19.53039066]
[1727415218633,3.1888,156.78,156.76,10.73622861]
[1727415218830,3.1888,156.78,156.77,5.84322673]
[1727415219031,3.1889,156.77,156.74,3.1894]
[1727415219232,3.1889,156.77,156.75,25.37469283]
[1727415219434,3.1889,156.77,156.76,10.7364366]
[1727415219630,3.1889,156.77,156.76,10.73663095]
[1727415220632,3.1889,156.77,156.76,5.84349063]
[1727415220830,3.1895,156.74,156.7,7.6960948]
[1727415221130,3.1895,156.74,156.71,36.27487885]
[1727415221332,1.3286,156.82,156.72,25.37788962]
[1727415221530,6.3766,156.8,156.68,1.3195]
[1727415221731,6.3766,156.8,156.69,10.73997458]
[1727415221938,3.1901,156.71,156.68,1.3195]
[1727415224735,3.1901,156.71,156.68,4.5102]
[1727415225638,3.19,156.72,156.68,4.5102]
[1727415227942,3.1901,156.71,156.68,4.5102]
[1727415229541,6.3766,156.8,156.68,1.3195]
[1727415230238,3.1898,156.73,156.69,3.1904]
[1727415230547,3.13000019,156.75,156.68,1.3195]
[1727415230736,3.1902,156.71,156.68,1.3195]
[1727415231043,3.26500478,156.74,156.68,1.3195]
[1727415231237,6.3773,156.79,156.68,1.3195]
[1727415232845,3.1903,156.7,156.68,1.3195]
[1727415233041,3.14085162,156.73,156.65,3.1913]
[1727415233246,6.3786,156.75,156.66,19.49157775]
[1727415233443,6.3786,156.75,156.63,2.6906]
[1727415233444,2.5551,156.74,156.63,2.6906]
[1727415233645,2.5551,156.74,156.64,9.02236103]
[1727415233851,2.5551,156.74,156.63,2.6906]
[1727415234050,3.1907,156.69,156.64,10.71324874]
[1727415234350,2.5551,156.74,156.65,3.1913]
[1727415234953,3.1908,156.68,156.65,3.1913]
[1727415238754,2.5551,156.74,156.55,54.33502481]
[1727415238952,0.8274,156.73,156.6,1.3582]
[1727415239659,6.3799,156.72,156.61,3.192]
[1727415240254,3.1915,156.65,156.61,3.192]
[1727415240454,6.3799,156.72,156.61,3.192]
[1727415241555,3.1916,156.64,156.6,4.5504]
[1727415241761,6.3799,156.72,156.6,4.5504]
[1727415242563,6.3802,156.71,156.6,1.3582]
[1727415242760,0.8274,156.73,156.56,14.01231552]
[1727415243563,6.3807,156.7,156.56,1.3311]
[1727415243960,6.3807,156.7,156.57,3.1928]
[1727415244260,6.3807,156.7,156.56,1.3311]
[1727415244454,3.1922,156.61,156.57,3.1929]
[1727415245061,3.1924,156.6,156.56,4.5242]
[1727415246258,3.2472901,156.64,156.54,2.7565]
[1727415246465,7.2096,156.66,156.54,2.7565]
[1727415246962,10.44219937,156.66,156.54,2.7565]
[1727415247155,3.1932,156.56,156.54,2.7565]
[1727415247556,10.44219937,156.66,156.54,2.7565]
[1727415247755,3.193,156.57,156.54,2.7565]
[1727415249965,3.1932,156.56,156.54,2.7565]
[1727415251364,6.3827,156.65,156.54,2.7565]
[1727415251769,6.3831,156.64,156.51,3.1941]
[1727415252360,6.3831,156.64,156.5,3.1942]
[1727415252869,3.1936,156.54,156.5,3.1942]
[1727415253065,6.3831,156.64,156.51,3.1941]
[1727415253469,3.1935,156.55,156.51,3.1941]
[1727415254271,3.1932,156.56,156.49,2.5425]
[1727415254669,3.21307234,156.58,156.49,2.5425]
[1727415254872,6.3831,156.64,156.51,3.194]
[1727415254873,3.1934,156.55,156.51,3.194]
[1727415255567,3.1934,156.55,156.52,3.1939]
[1727415255766,3.1932642,156.58,156.49,2.5425]
[1727415255969,4.05989937,156.66,156.49,5.7369]
[1727415255970,6.3839,156.62,156.49,5.7369]
[1727415256269,2.6693,156.61,156.43,10.6250108]
[1727415256465,6.3855,156.58,156.46,3.1952]
[1727415256664,9.60592052,156.58,156.44,3.8155]
[1727415257064,9.60592052,156.58,156.47,3.1949]
[1727415257471,9.60592052,156.58,156.44,3.8155]
[1727415257872,3.1945,156.5,156.46,3.1951]
[1727415259672,3.1946,156.49,156.46,3.1951]
[1727415260173,6.386,156.57,156.44,4.4554]
[1727415261874,3.1949,156.48,156.44,4.4554]
[1727415263071,6.386,156.57,156.46,3.1951]
[1727415263974,3.1946,156.49,156.45,3.1953]
[1727415264567,3.1944,156.5,156.46,3.1951]
[1727415266574,3.1947,156.49,156.45,3.1953]
[1727415266974,6.386,156.57,156.45,3.1953]
[1727415267568,3.1947,156.49,156.45,3.1953]
[1727415267775,6.386,156.57,156.45,3.1953]
[1727415268678,6.386,156.57,156.44,4.4555]
[1727415268878,6.386,156.57,156.44,1.26]
[1727415269779,3.1947,156.49,156.45,3.1954]
[1727415270580,3.1948,156.48,156.45,3.1954]
[1727415270775,3.1948,156.48,156.44,4.4555]
[1727415272177,3.21537776,156.5,156.44,1.26]
[1727415272480,3.22042052,156.58,156.44,1.26]
[1727415272677,3.1955,156.45,156.41,4.4701]
[1727415273275,3.1956,156.44,156.41,4.4701]
[1727415273676,3.1952437,156.48,156.41,1.274]
[1727415273879,3.1959,156.43,156.41,1.274]
[1727415274079,6.388,156.52,156.41,1.274]
[1727415274080,3.14203676,156.47,156.41,1.274]
[1727415274277,6.388,156.52,156.41,1.274]
[1727415275280,6.388,156.52,156.41,4.4702]
[1727415275978,3.1955,156.45,156.41,4.4702]
[1727415278082,3.1956,156.44,156.41,4.4702]
[1727415284685,3.1956,156.44,156.42,3.1959]
[1727415288091,3.1958,156.43,156.41,4.4701]
[1727415292083,3.1958,156.43,156.41,1.274]
[1727415292289,3.13915973,156.48,156.41,1.274]
[1727415292490,100.42679445,156.52,156.41,1.274]
[1727415292785,3.1958,156.44,156.41,4.4701]
[1727415292991,3.27490925,156.47,156.41,4.4701]
[1727415293287,100.42679445,156.52,156.41,4.4701]
[1727415294794,3.1957,156.44,156.41,4.4701]
[1727415295196,3.14767244,156.47,156.41,1.274]
[1727415295392,3.1948,156.48,156.41,4.40504853]
[1727415295899,3.1951,156.47,156.43,3.1956]
[1727415296291,3.26755637,156.5,156.43,3.1956]
[1727415296495,1.3551,156.54,156.43,3.1956]
[1727415296890,6.3876,156.53,156.41,1.274]
[1727415297091,6.3876,156.53,156.37,1.3418]
[1727415297092,1.3551,156.54,156.37,1.3418]
[1727415297294,3.1946,156.49,156.37,1.3418]
[1727415297594,3.4366,156.48,156.37,1.3418]
[1727415297989,3.1965,156.4,156.37,1.3418]
[1727415298191,6.65771145,156.48,156.37,1.3418]
[1727415298691,6.65771145,156.48,156.37,4.5386]
[1727415299494,3.1962,156.41,156.37,4.5386]
[1727415300400,6.65771145,156.48,156.38,3.1966]
[1727415300796,3.1962,156.42,156.37,4.5388]
[1727415301298,6.65771145,156.48,156.37,1.3418]
[1727415302000,6.65771145,156.48,156.38,3.1966]
[1727415302301,3.196,156.43,156.38,3.1966]
[1727415303297,3.196,156.43,156.39,3.1966]
[1727415304501,3.1957,156.44,156.4,3.1964]
[1727415304899,3.1958,156.43,156.39,3.1964]
[1727415308801,3.1957,156.44,156.4,3.1963]
[1727415309505,3.1958,156.43,156.4,3.1963]
[1727415310406,3.1957,156.44,156.4,3.1963]
[1727415310600,4.55521145,156.48,156.37,1.3418]
[1727415311005,3.1957,156.44,156.37,1.3418]
[1727415311607,3.1957,156.44,156.4,3.1963]
[1727415313105,4.55521145,156.48,156.39,3.1966]
[1727415313803,3.196,156.42,156.39,3.1966]
[1727415314007,3.196,156.42,156.38,3.1968]
[1727415314307,4.55521145,156.48,156.37,1.3418]
[1727415314908,4.55521145,156.48,156.37,4.5388]
[1727415315408,3.1963,156.41,156.38,3.1968]
[1727415316305,3.196,156.42,156.39,3.1966]
[1727415316504,3.196,156.42,156.37,1.3418]
[1727415316701,3.196,156.42,156.38,3.1967]
[1727415320613,3.1962,156.41,156.38,3.1967]
[1727415323015,3.1962,156.41,156.39,3.1966]
[1727415323215,3.1962,156.41,156.37,1.3418]
[1727415323513,3.1962,156.41,156.38,3.1967]
[1727415324706,3.1964,156.4,156.38,3.1967]
[1727415327212,3.1962,156.42,156.37,1.3418]
[1727415327411,3.1962,156.42,156.38,10.61659232]
[1727415327617,3.1962,156.42,156.39,5.83933661]
[1727415327926,3.1962,156.42,156.39,3.1965]
[1727415328118,3.1963,156.41,156.37,1.3418]
[1727415328319,3.1963,156.41,156.38,13.8144037]
[1727415328519,4.55521145,156.48,156.39,5.83996068]
[1727415328817,3.1964,156.41,156.38,3.1966]
[1727415329017,3.1964,156.41,156.39,5.84003161]
[1727415329217,3.1964,156.41,156.38,3.1966]
[1727415329415,3.1964,156.41,156.39,5.84098085]
[1727415329615,3.1964,156.41,156.38,3.1966]
[1727415329918,3.1964,156.4,156.39,5.84097628]
[1727415330117,4.55521145,156.48,156.39,5.84097628]
[1727415330318,4.55521145,156.48,156.38,3.1966]
[1727415330517,4.55521145,156.48,156.39,5.84145996]
[1727415330714,4.55521145,156.48,156.39,3.1965]
[1727415331121,3.196,156.43,156.39,3.1965]
[1727415331920,3.196,156.42,156.39,3.1965]
[1727415332723,6.3902,156.47,156.37,1.3418]
[1727415333129,3.1967,156.39,156.38,5.84309594]
[1727415333317,6.3908,156.45,156.35,7.63880947]
[1727415333924,3.1972,156.36,156.35,7.63880947]
[1727415334219,3.1972,156.36,156.35,5.84451036]
[1727415334427,3.27181112,156.39,156.32,10.84836145]
[1727415334725,6.3908,156.45,156.33,10.62622267]
[1727415335022,6.3908,156.45,156.34,10.62622267]
[1727415335222,6.3908,156.45,156.33,3.1978]
[1727415335420,6.3908,156.45,156.34,4.78142774]
[1727415335622,6.3908,156.45,156.35,5.84427563]
[1727415335824,3.1972,156.37,156.33,3.1978]
[1727415336025,3.1972,156.37,156.34,10.62562667]
[1727415336225,3.1972,156.37,156.35,5.84427563]
[1727415336419,3.1972,156.37,156.32,3.198]
[1727415336618,3.1972,156.37,156.33,18.27635063]
[1727415336821,3.12701362,156.39,156.34,10.62595359]
[1727415337022,6.3908,156.45,156.35,5.84445544]
[1727415337227,6.3908,156.45,156.32,3.198]
[1727415337427,3.1974,156.36,156.33,4.78167069]
[1727415337727,6.3908,156.45,156.34,10.62633915]
[1727415337728,3.20313403,156.39,156.34,10.62633915]
[1727415337930,3.1972,156.36,156.35,5.84466846]
[1727415338432,3.1974,156.36,156.32,7.64970036]
[1727415338628,3.1974,156.36,156.33,4.78188442]
[1727415338833,3.1974,156.36,156.34,10.6268143]
[1727415339131,3.1974,156.35,156.31,1.3449]
[1727415339629,3.1974,156.35,156.32,18.27817197]
[1727415339833,3.1974,156.35,156.33,10.62701354]
[1727415340131,3.1974,156.35,156.34,10.62701354]
[1727415340331,3.1971,156.37,156.34,10.62701354]
[1727415340532,3.1971,156.37,156.33,3.1978]
[1727415340732,3.1971,156.37,156.34,10.62707436]
[1727415341030,3.1971,156.37,156.33,3.1978]
[1727415341232,3.1971,156.37,156.34,5.845209]
[1727415341532,3.1973,156.36,156.32,3.198]
[1727415341735,3.1973,156.36,156.33,10.62731997]
[1727415341935,3.1973,156.36,156.34,10.62731997]
[1727415342135,3.1973,156.36,156.32,3.198]
[1727415342428,3.1973,156.36,156.33,10.62643845]
[1727415342632,2.1703,156.46,156.34,5.84472344]
[1727415342834,1.339,156.46,156.35,7.10092344]
[1727415343028,3.196,156.42,156.36,19.64352058]
[1727415343228,3.196,156.42,156.37,11.97158388]
[1727415343431,1.339,156.46,156.38,5.84472344]
[1727415343634,3.1961,156.42,156.39,5.84347703]
[1727415343834,3.1961,156.42,156.37,1.3459]
[1727415344034,1.339,156.46,156.37,1.3459]
[1727415344336,1.339,156.46,156.38,10.62417491]
[1727415344535,1.339,156.46,156.39,5.8434652]
[1727415344733,1.339,156.46,156.39,3.1965]
[1727415345134,3.1962,156.42,156.38,3.1967]
[1727415345336,1.339,156.46,156.39,10.62504837]
[1727415345534,1.339,156.46,156.37,1.3459]
[1727415345733,3.1962,156.41,156.38,10.62502623]
[1727415346030,3.1962,156.41,156.39,10.62502623]
[1727415346237,3.1962,156.41,156.37,4.5428]
[1727415346436,3.1962,156.41,156.38,10.62556925]
[1727415346639,3.1962,156.41,156.39,10.62556925]
[1727415346839,3.1962,156.41,156.37,4.5428]
[1727415347036,3.1961,156.42,156.38,10.62554674]
[1727415347236,3.1961,156.42,156.39,10.62554674]
[1727415347539,3.1961,156.42,156.4,5.84420839]
[1727415347735,3.1961,156.42,156.39,3.1966]
[1727415347930,3.1961,156.42,156.4,5.8444901]
[1727415348139,3.1961,156.42,156.39,3.1966]
[1727415348335,3.1961,156.42,156.4,5.84476147]
[1727415348530,3.1961,156.42,156.39,3.1966]
[1727415348738,3.1962,156.41,156.4,5.84476147]
[1727415350436,3.1962,156.41,156.38,3.1967]
[1727415350642,3.1962,156.41,156.39,5.84545145]
[1727415350941,3.1962,156.41,156.4,5.84545145]
[1727415354238,3.1968,156.38,156.33,6.36519858]
[1727415354442,3.1968,156.38,156.36,18.28578808]
[1727415354642,3.1968,156.38,156.37,5.84745713]
[1727415354939,3.1968,156.38,156.37,10.63143057]
[1727415355545,3.1968,156.38,156.37,4.78397344]
[1727415355745,3.1968,156.38,156.37,10.63203152]
[1727415357947,3.1968,156.38,156.37,5.84805808]
[1727415358141,3.1968,156.38,156.35,3.1974]
[1727415358348,6.3905,156.46,156.36,5.84922073]
[1727415358548,6.3905,156.46,156.37,5.84922073]
[1727415358749,6.3905,156.46,156.34,3.1975]
[1727415358949,6.3905,156.46,156.35,18.29248535]
[1727415359147,6.3905,156.46,156.36,10.63533053]
[1727415359341,6.3905,156.46,156.37,5.84960877]
[1727415359547,3.1967,156.39,156.35,3.1974]
[1727415359848,3.1967,156.39,156.36,10.63579076]
[1727415360148,3.1967,156.39,156.37,5.84986239]
[1727415360349,6.3905,156.46,156.32,7.72083515]
[1727415360541,6.3905,156.46,156.33,24.70333877]
[1727415360746,6.3905,156.46,156.34,24.70333877]
[1727415360947,3.1966,156.4,156.36,3.1972]
[1727415361147,3.1966,156.4,156.37,5.85017921]
[1727415361451,3.1966,156.39,156.36,3.1972]
[1727415361746,4.55521145,156.48,156.37,10.63689832]
[1727415361952,3.1957,156.44,156.38,19.56903238]
[1727415362253,4.55521145,156.48,156.39,18.29476858]
[1727415362451,4.55521145,156.48,156.4,5.85047105]
[1727415362752,3.1961,156.42,156.41,5.85014812]
[1727415362949,3.1961,156.42,156.38,5.7833]
[1727415363156,3.1961,156.42,156.39,10.6365071]
[1727415363356,3.1961,156.42,156.4,10.63675198]
[1727415363655,3.1961,156.42,156.38,5.7833]
[1727415363855,3.1961,156.42,156.39,10.63700408]
[1727415364052,3.1961,156.42,156.38,5.7833]
[1727415364258,3.1961,156.42,156.39,5.8505206]
[1727415364458,3.1961,156.42,156.4,5.8505206]
[1727415364761,4.55521145,156.48,156.41,5.8505206]
[1727415364958,1.3341,156.48,156.42,3.196]
[1727415365258,3.1953,156.46,156.43,5.85165834]
[1727415365559,1.3341,156.48,156.42,3.196]
[1727415365757,3.1955,156.45,156.43,5.85108182]
[1727415365960,1.3341,156.48,156.41,3.1961]
[1727415366155,1.3341,156.48,156.42,10.63802997]
[1727415366457,3.1956,156.45,156.43,5.85103491]
[1727415366657,3.1956,156.45,156.41,3.1961]
[1727415366858,3.1956,156.45,156.42,10.63740645]
[1727415367059,3.1956,156.45,156.43,5.85073523]
[1727415367260,3.1956,156.45,156.41,3.1961]
[1727415367462,3.1956,156.44,156.42,10.63671739]
[1727415367657,3.1956,156.44,156.43,5.85035617]
[1727415367962,3.1956,156.44,156.4,7.98278348]
[1727415368257,1.3341,156.48,156.41,10.63705496]
[1727415368457,1.3341,156.48,156.42,5.85054371]
[1727415368664,1.3341,156.48,156.4,4.78648348]
[1727415368858,3.1961,156.42,156.41,5.85055836]
[1727415369461,1.3341,156.48,156.41,5.85055836]
[1727415369762,1.3341,156.48,156.4,4.78648348]
[1727415370356,3.1962,156.41,156.4,4.78648348]
[1727415370553,3.1962,156.41,156.4,10.63748116]
[1727415370759,3.1962,156.41,156.4,4.78648348]
[1727415370956,3.1962,156.41,156.4,10.63752352]
[1727415371756,3.1962,156.41,156.4,4.78648348]
[1727415374060,3.1962,156.41,156.4,2.70588348]
[1727415374267,3.1972,156.36,156.35,6.37246413]
[1727415374561,1.3341,156.48,156.35,5.85180559]
[1727415374860,1.3341,156.48,156.33,1.2618]
[1727415374861,6.3913,156.44,156.33,1.2618]
[1727415375059,1.2766,156.43,156.34,5.85141397]
[1727415375263,1.2766,156.43,156.35,5.85141397]
[1727415375459,1.2766,156.43,156.33,1.2618]
[1727415375663,1.2766,156.43,156.34,5.85096569]
[1727415375869,3.1973,156.36,156.35,5.85096569]
[1727415377467,3.1681866,156.4,156.33,1.2618]
[1727415377672,3.1975,156.35,156.34,5.849547]
[1727415377972,3.26495987,156.38,156.34,5.84954701]
[1727415378268,6.3921,156.42,156.28,1.2799]
[1727415378567,3.1984,156.3,156.29,13.41051803]
[1727415378768,3.1514044,156.33,156.29,5.84833076]
[1727415378970,6.3925,156.41,156.3,5.84833076]
[1727415379270,3.1984,156.31,156.27,3.199]
[1727415379462,3.1984,156.31,156.28,5.84644744]
[1727415379670,2.1086,156.43,156.25,6.40616713]
[1727415379671,6.393,156.4,156.25,6.40616713]
[1727415379970,6.393,156.4,156.26,5.84700423]
[1727415380172,6.393,156.4,156.24,7.56133382]
[1727415380368,6.3933,156.39,156.25,5.84360116]
[1727415380569,6.3933,156.39,156.22,1.2799]
[1727415380763,83.1533,156.39,156.23,5.84391819]
[1727415380963,83.1533,156.39,156.25,3.1994]
[1727415381474,83.1533,156.39,156.21,2.6141]
[1727415381768,83.1533,156.39,156.23,1.3461]
[1727415381965,3.1988,156.29,156.25,3.1993]
[1727415382471,3.15229477,156.31,156.23,1.3461]
[1727415382667,83.1533,156.39,156.24,3.1996]
[1727415382668,3.199,156.28,156.24,3.1996]
[1727415383674,3.23549411,156.3,156.22,3.2]
[1727415383976,6.3944,156.37,156.22,3.2]
[1727415384172,3.1992,156.27,156.22,3.2]
[1727415385573,3.1992,156.27,156.23,3.1999]
[1727415385968,3.19578814,156.3,156.21,2.6141]
[1727415386167,2.213,156.36,156.22,1.3513]
[1727415386573,3.1988,156.29,156.22,1.3513]
[1727415386769,3.1314563,156.32,156.22,1.3513]
[1727415386969,2.213,156.36,156.22,1.3513]
[1727415387172,3.1987,156.29,156.22,1.3513]
[1727415387476,2.213,156.36,156.22,1.3513]
[1727415387973,3.1986,156.3,156.22,1.3513]
[1727415388174,3.27250329,156.33,156.22,1.3513]
[1727415388371,2.213,156.36,156.22,1.3513]
[1727415389378,2.213,156.36,156.23,3.1997]
[1727415389875,2.213,156.36,156.22,1.3513]
[1727415390079,3.199,156.28,156.24,3.1997]
[1727415392381,6.42736084,156.29,156.22,1.3513]
[1727415392583,2.213,156.36,156.22,1.3513]
[1727415392880,3.199,156.28,156.24,3.1996]
[1727415394183,3.1991,156.27,156.24,3.1996]
[1727415395976,3.1993,156.26,156.24,3.1996]
[1727415396379,3.1993,156.26,156.23,3.1998]
[1727415396886,3.1995,156.25,156.22,4.5513]
[1727415397183,3.20177933,156.31,156.21,2.6141]
[1727415397383,1.3457,156.3,156.21,2.6141]
[1727415397586,3.1998,156.24,156.21,2.6141]
[1727415397779,1.3457,156.3,156.21,2.6141]
[1727415397975,3.1994,156.26,156.23,3.1999]
[1727415399380,4.55067951,156.3,156.18,1.3285]
[1727415399586,4.55067951,156.3,156.19,1.3206]
[1727415399587,1.3457,156.3,156.19,1.3206]
[1727415399786,4.51579756,156.3,156.19,1.3206]
[1727415399987,1.3457,156.3,156.19,1.3206]
[1727415400187,3.1998,156.24,156.21,3.2002]
[1727415401388,3.1998,156.24,156.19,1.3206]
[1727415401389,3.1999,156.23,156.2,3.2004]
[1727415402088,3.2001,156.22,156.2,3.2004]
[1727415402286,3.2001,156.22,156.19,4.5212]
[1727415403485,3.24368459,156.28,156.19,4.5212]
[1727415403686,1.3457,156.3,156.19,4.5212]
[1727415404190,3.2002,156.22,156.19,4.5212]
[1727415405088,3.2003,156.21,156.19,4.5212]
[1727415407682,3.2002,156.22,156.19,4.5212]
[1727415407887,3.2002,156.22,156.2,3.2005]
[1727415408784,3.2,156.23,156.2,3.2005]
[1727415409985,4.49560133,156.3,156.19,1.3206]
[1727415410598,4.49560133,156.3,156.22,3.2]
[1727415412396,3.1994,156.26,156.22,3.2]
[1727415412591,3.14990133,156.3,156.19,1.3206]
[1727415412793,94.15908302,156.32,156.19,1.3206]
[1727415413187,94.15908302,156.32,156.23,3.1997]
[1727415413393,97.32094107,156.32,156.23,3.1997]
[1727415413593,3.1993,156.27,156.23,3.1997]
[1727415413993,3.1993,156.27,156.24,3.1997]
[1727415414398,3.1989,156.28,156.24,3.1997]
[1727415414898,3.1991,156.27,156.24,3.1997]
[1727415416495,97.32094107,156.32,156.25,3.1993]
[1727415416702,97.32094107,156.32,156.19,1.3206]
[1727415417601,3.1987,156.29,156.25,3.1993]
[1727415417796,97.32094107,156.32,156.25,3.1993]
[1727415418799,97.32094107,156.32,156.26,3.1993]
[1727415418800,3.1988,156.29,156.26,3.1993]
[1727415419708,3.1988,156.29,156.25,3.1994]
[1727415420499,3.1988,156.29,156.26,3.1992]
[1727415422102,97.32094107,156.32,156.27,3.199]
[1727415422300,76.82,156.38,156.22,1.3293]
[1727415422602,3.1979,156.33,156.29,3.1985]
[1727415422805,3.2357235,156.34,156.29,3.1985]
[1727415423005,76.82,156.38,156.29,3.1985]
[1727415423711,76.82,156.38,156.22,1.3293]
[1727415424208,3.1984,156.31,156.27,3.199]
[1727415424911,3.27412211,156.34,156.25,3.1993]
[1727415425112,76.82,156.38,156.22,1.3293]
[1727415425309,1.3568,156.33,156.19,1.3206]
[1727415425614,3.1996,156.25,156.21,3.2002]
[1727415427211,3.1996,156.25,156.19,1.3206]
[1727415427611,3.1996,156.25,156.22,3.2]
[1727415427921,0.8343,156.32,156.19,1.3206]
[1727415428106,0.8343,156.32,156.23,3.1997]
[1727415428303,3.1994,156.26,156.23,3.1997]
[1727415429013,3.1994,156.26,156.19,1.3206]
[1727415429812,3.1994,156.26,156.23,3.1997]
[1727415430906,3.98975623,156.32,156.19,1.3206]
[1727415431310,3.1998,156.24,156.21,3.2002]
[1727415431507,3.98975623,156.32,156.21,3.2002]
[1727415431908,3.98975623,156.32,156.19,1.3206]
[1727415432211,3.98975623,156.32,156.22,3.2001]
[1727415432610,3.1994,156.26,156.19,1.3206]
[1727415433111,3.98975623,156.32,156.19,1.3206]
[1727415433308,3.1992,156.27,156.23,3.1997]
[1727415433910,3.1992,156.27,156.19,1.3382]
[1727415434112,3.1993,156.26,156.19,1.3382]
[1727415434814,3.1993,156.26,156.23,3.1997]
[1727415435615,3.1995,156.25,156.23,3.1997]
[1727415436110,3.1995,156.25,156.22,3.2]
[1727415438415,3.98975623,156.32,156.19,1.3382]
[1727415439618,3.1996,156.25,156.23,3.1999]
[1727415440618,3.98975623,156.32,156.22,3.2]
[1727415440816,3.98975623,156.32,156.19,1.3382]
[1727415441211,3.1998,156.24,156.21,3.2002]
[1727415441420,3.98975623,156.32,156.21,3.2002]
[1727415441910,3.1997,156.25,156.21,3.2002]
[1727415442224,3.98975623,156.32,156.21,3.2002]
[1727415442416,3.1996,156.25,156.21,3.2002]
[1727415443015,3.1997,156.24,156.21,3.2002]
[1727415443217,3.98975623,156.32,156.21,3.2002]
[1727415443615,3.1995,156.25,156.21,3.2002]
[1727415444119,3.98975623,156.32,156.19,1.3382]
[1727415444322,3.98975623,156.32,156.2,10.56416821]
[1727415444521,3.98975623,156.32,156.19,1.3382]
[1727415444522,3.98975623,156.32,156.21,5.84252116]
[1727415444723,3.98975623,156.32,156.19,1.3382]
[1727415444918,3.1994,156.26,156.2,10.56416694]
[1727415445124,3.1994,156.26,156.21,5.84252045]
[1727415445318,3.98975623,156.32,156.19,1.3382]
[1727415445621,3.98975623,156.32,156.2,10.57112565]
[1727415445823,3.98975623,156.32,156.21,5.84632748]
[1727415446122,3.98975623,156.32,156.19,1.3382]
[1727415446321,3.98975623,156.32,156.2,10.57159164]
[1727415446524,3.98975623,156.32,156.21,10.57159164]
[1727415446726,3.98975623,156.32,156.22,5.84671785]
[1727415446916,3.98975623,156.32,156.22,9.04661785]
[1727415446917,3.1996,156.25,156.22,9.04661785]
[1727415447117,3.1996,156.25,156.22,3.1999]
[1727415447524,3.1996,156.25,156.19,1.3382]
[1727415447525,3.98975623,156.32,156.19,1.3382]
[1727415447720,3.98975623,156.32,156.2,24.56883252]
[1727415448023,3.1992,156.27,156.23,3.1998]
[1727415448420,3.1992,156.27,156.24,5.85662029]
[1727415448622,3.1992,156.27,156.23,3.1998]
[1727415448925,3.1992,156.27,156.24,5.8566203]
[1727415449127,3.1993,156.26,156.23,3.1998]
[1727415450223,3.1988,156.29,156.25,3.1993]
[1727415450518,3.15545623,156.32,156.2,6.41843397]
[1727415450717,94.11473523,156.4,156.3,3.1983]
[1727415450718,3.1977,156.34,156.3,3.1983]
[1727415451022,1.2808,156.39,156.26,3.13421081]
[1727415451222,1.2808,156.39,156.27,22.1716692]
[1727415451429,1.2808,156.39,156.28,18.1589692]
[1727415451618,1.2808,156.39,156.29,10.58757744]
[1727415451824,3.1976,156.35,156.31,3.1981]
[1727415452020,3.1976,156.35,156.32,5.85248928]
[1727415452223,3.1976,156.35,156.31,3.1981]
[1727415452925,3.1976,156.35,156.32,5.84945453]
[1727415453226,1.2808,156.39,156.27,4.0127]
[1727415453427,1.2808,156.39,156.28,24.53551857]
[1727415453622,3.1972,156.37,156.33,3.1977]
[1727415453926,3.1972,156.37,156.27,4.0127]
[1727415453927,1.2808,156.39,156.27,4.0127]
[1727415454129,1.2808,156.39,156.28,18.68935568]
[1727415454427,1.2808,156.39,156.32,3.198]
[1727415455035,3.1973,156.36,156.32,3.198]
[1727415455523,3.1977,156.34,156.27,4.0127]
[1727415455729,3.1977,156.34,156.28,10.56185629]